bitfinex/quotes_BTCUSD_20240607
["timestamp","ask_amount","ask_price","bid_price","bid_amount"]
[1717793833891,0.2385,69352.0,69351.0,0.52227245]
[1717793834127,0.24642876,69352.0,69351.0,0.52227245]
[1717793834328,0.2385,69352.0,69351.0,0.52227245]
[1717793834504,0.24641877,69352.0,69351.0,0.52227245]
[1717793834711,0.24641877,69352.0,69351.0,0.29782538]
[1717793834901,0.24641877,69352.0,69351.0,0.52234037]
[1717793835104,0.2385,69352.0,69351.0,0.6667593]
[1717793835346,0.2385,69352.0,69351.0,0.6647593]
[1717793835549,0.24641877,69352.0,69351.0,0.6627593]
[1717793835936,0.24641877,69352.0,69351.0,0.28861293]
[1717793836145,0.24641877,69352.0,69351.0,0.66275825]
[1717793836351,0.24641877,69352.0,69351.0,0.66375825]
[1717793836555,0.24641877,69352.0,69351.0,0.68675825]
[1717793836751,0.24641877,69352.0,69351.0,0.68775825]
[1717793838362,0.24641877,69352.0,69351.0,0.68575825]
[1717793838733,0.24641877,69352.0,69351.0,0.68775825]
[1717793838960,0.24641877,69352.0,69351.0,0.68675825]
[1717793839559,0.24641877,69352.0,69351.0,0.68775825]
[1717793840547,0.27742065,69352.0,69351.0,0.52033932]
[1717793840771,0.7406377,69352.0,69351.0,0.13984532]
[1717793840982,1.18418493,69352.0,69351.0,0.09288383]
[1717793841189,0.005,69331.0,69329.0,0.144237]
[1717793841401,0.005,69335.0,69325.0,0.015]
[1717793841623,0.005,69335.0,69321.0,0.288509]
[1717793841624,0.005,69335.0,69326.0,0.14441893]
[1717793841828,0.0130914,69334.0,69326.0,0.14441893]
[1717793842035,0.0080914,69334.0,69326.0,0.14441893]
[1717793842238,0.005,69331.0,69330.0,0.144237]
[1717793842451,0.005,69330.0,69325.0,0.144247]
[1717793842658,0.005,69328.0,69325.0,0.144247]
[1717793842879,0.00482637,69327.0,69326.0,0.014]
[1717793843099,0.01289079,69327.0,69326.0,0.028]
[1717793843307,0.00482637,69326.0,69325.0,0.144247]
[1717793843709,0.00482637,69326.0,69325.0,0.158247]
[1717793843837,0.00482637,69328.0,69325.0,0.158247]
[1717793844042,0.00482637,69326.0,69325.0,0.144247]
[1717793844349,0.00482637,69326.0,69325.0,0.014]
[1717793844350,0.1747,69326.0,69325.0,0.014]
[1717793844555,0.5108983,69326.0,69325.0,0.014]
[1717793844769,0.6527053,69326.0,69325.0,0.014]
[1717793844958,0.35324494,69326.0,69325.0,0.014]
[1717793845158,0.6527053,69326.0,69325.0,0.014]
[1717793845385,0.35324494,69326.0,69325.0,0.014]
[1717793845592,0.00482637,69322.0,69321.0,0.000946]
[1717793845787,0.03384637,69322.0,69321.0,0.000946]
[1717793845942,0.04176109,69322.0,69321.0,0.000946]
[1717793846999,0.00482637,69316.0,69312.0,0.01789206]
[1717793847208,0.00482637,69316.0,69313.0,0.023]
[1717793847437,0.00789849,69315.0,69313.0,0.023]
[1717793847661,0.00482637,69315.0,69313.0,0.023]
[1717793847865,0.00482637,69316.0,69313.0,0.023]
[1717793848094,0.00781805,69315.0,69314.0,0.01517363]
[1717793848298,0.04784637,69322.0,69313.0,0.023]
[1717793848530,0.00789642,69315.0,69314.0,0.07222824]
[1717793848713,0.014,69322.0,69314.0,0.09522824]
[1717793848927,0.014,69322.0,69317.0,0.01517363]
[1717793849155,0.00794391,69321.0,69320.0,0.01517363]
[1717793849355,0.00794391,69321.0,69320.0,0.023]
[1717793849796,0.028,69322.0,69320.0,0.023]
[1717793849998,0.014,69322.0,69321.0,0.023]
[1717793850412,0.014,69321.0,69320.0,0.018]
[1717793850857,0.1,69331.0,69323.0,0.01517363]
[1717793850858,0.11696938,69331.0,69323.0,0.01517363]
[1717793851067,0.10792649,69330.0,69324.0,0.28866893]
[1717793851282,0.00792649,69330.0,69324.0,0.28866893]
[1717793851501,0.1,69334.0,69324.0,0.28866893]
[1717793851748,0.00782704,69329.0,69324.0,0.28866893]
[1717793851945,0.1,69334.0,69324.0,0.28866893]
[1717793852152,0.00782205,69328.0,69325.0,0.139248]
[1717793852433,0.01697978,69335.0,69326.0,0.023]
[1717793852669,0.0078623,69334.0,69326.0,0.023]
[1717793852876,0.00482637,69332.0,69326.0,0.023]
[1717793853086,0.03581731,69331.0,69326.0,0.023]
[1717793853301,0.014,69331.0,69326.0,0.023]
[1717793853511,0.00482637,69337.0,69326.0,0.023]
[1717793853709,0.014,69335.0,69326.0,0.023]
[1717793853914,0.014,69334.0,69326.0,0.023]
[1717793854230,0.02183206,69334.0,69326.0,0.167245]
[1717793854430,0.014,69331.0,69326.0,0.167245]
[1717793854628,0.00783206,69334.0,69326.0,0.167245]
[1717793854833,0.00482637,69336.0,69326.0,0.167245]
[1717793855111,0.00782707,69333.0,69326.0,0.167245]
[1717793855327,0.02666299,69335.0,69326.0,0.167245]
[1717793855767,0.00482637,69334.0,69326.0,0.162245]
[1717793855977,0.00482637,69333.0,69326.0,0.162245]
[1717793856199,0.01265483,69333.0,69326.0,0.162245]
[1717793856603,0.014,69331.0,69327.0,0.15941663]
[1717793856809,0.014,69331.0,69327.0,0.144243]
[1717793857227,0.014,69331.0,69327.0,0.15941663]
[1717793857483,0.014,69331.0,69328.0,0.14424]
[1717793857869,0.00482637,69332.0,69328.0,0.14424]
[1717793858260,0.02182079,69331.0,69328.0,0.14424]
[1717793858683,0.014,69331.0,69328.0,0.14424]
[1717793859097,0.028,69331.0,69328.0,0.14424]
[1717793859414,0.014,69331.0,69328.0,0.14424]
[1717793859618,0.00482637,69332.0,69328.0,0.14424]
[1717793859972,0.00482637,69329.0,69328.0,0.14424]
[1717793860178,0.014,69331.0,69328.0,0.14424]
[1717793860800,0.00482637,69332.0,69328.0,0.14424]
[1717793860801,0.01882637,69332.0,69328.0,0.13924]
[1717793861155,0.00782079,69331.0,69328.0,0.13924]
[1717793861329,0.014,69332.0,69328.0,0.13924]
[1717793861466,0.028,69332.0,69328.0,0.13924]
[1717793861887,0.00782079,69331.0,69328.0,0.13924]
[1717793862112,0.014,69332.0,69328.0,0.13924]
[1717793862309,0.00782404,69330.0,69328.0,0.13924]
[1717793862509,0.014,69331.0,69328.0,0.13924]
[1717793862960,0.1,69338.0,69328.0,0.13924]
[1717793863156,0.1,69338.0,69326.0,0.03317363]
[1717793863157,0.00783853,69330.0,69329.0,0.2318208]
[1717793863358,0.1,69338.0,69329.0,0.2318208]
[1717793863359,0.028,69332.0,69331.0,0.15940863]
[1717793863596,0.028,69332.0,69331.0,0.48272756]
[1717793863597,0.014,69332.0,69331.0,0.48272756]
[1717793864015,0.014,69332.0,69331.0,0.78119856]
[1717793864428,0.0086,69352.0,69345.0,0.144204]
[1717793864629,0.29937162,69351.0,69344.0,0.01517363]
[1717793864845,0.00790605,69351.0,69350.0,0.144196]
[1717793865285,0.0086,69352.0,69351.0,0.144194]
[1717793865493,0.0086,69352.0,69351.0,0.31161293]
[1717793866329,0.0086,69352.0,69351.0,0.32678656]
[1717793866610,0.0226,69352.0,69351.0,0.32678656]
[1717793866857,0.0366,69352.0,69351.0,0.31161293]
[1717793867870,0.0366,69352.0,69351.0,0.32678656]
[1717793868174,0.0366,69352.0,69351.0,0.31161293]
[1717793870748,0.0366,69352.0,69346.0,0.144202]
[1717793870961,0.00482637,69349.0,69346.0,0.144202]
[1717793871176,0.0366,69352.0,69346.0,0.144202]
[1717793871177,0.04142637,69352.0,69346.0,0.144202]
[1717793871359,0.00793683,69348.0,69346.0,0.144202]
[1717793871633,0.00482637,69349.0,69346.0,0.144202]
[1717793871856,0.00793184,69347.0,69346.0,0.144202]
[1717793872038,0.02742637,69352.0,69347.0,0.144201]
[1717793872248,0.04142637,69352.0,69347.0,0.144201]
[1717793872456,0.00482637,69350.0,69347.0,0.144201]
[1717793872691,0.00482637,69351.0,69347.0,0.144201]
[1717793872848,0.02742637,69352.0,69347.0,0.144201]
[1717793873266,0.00482637,69349.0,69348.0,0.1442]
[1717793873473,0.0226,69352.0,69348.0,0.1442]
[1717793873474,0.0366,69352.0,69348.0,0.1442]
[1717793874027,0.014,69350.0,69348.0,0.1442]
[1717793874338,0.01882637,69350.0,69348.0,0.1442]
[1717793874545,0.014,69349.0,69348.0,0.1442]
[1717793875861,0.03037964,69352.0,69348.0,0.1442]
[1717793876231,0.00482637,69345.0,69329.0,0.01517363]
[1717793876383,0.00482637,69351.0,69340.0,0.01517363]
[1717793876583,0.29937658,69350.0,69337.0,0.01517363]
[1717793876795,0.1,69349.0,69346.0,0.144204]
[1717793876997,0.1,69351.0,69346.0,0.144204]
[1717793877195,0.014,69349.0,69347.0,0.144201]
[1717793877625,0.10482637,69351.0,69347.0,0.144201]
[1717793877837,0.014,69350.0,69347.0,0.144201]
[1717793878042,0.00086,69349.0,69347.0,0.144201]
[1717793879025,0.00732132,69348.0,69347.0,0.144201]
[1717793880306,0.01214769,69348.0,69347.0,0.144201]
[1717793880859,0.02614769,69348.0,69347.0,0.144201]
[1717793882109,0.02614769,69348.0,69338.0,0.14441893]
[1717793882110,0.00482637,69341.0,69338.0,0.14422]
[1717793882303,0.00482637,69339.0,69324.0,0.45437163]
[1717793882509,0.028,69348.0,69324.0,0.45437163]
[1717793882510,0.00482637,69341.0,69329.0,0.22761893]
[1717793882734,0.00482637,69339.0,69329.0,0.22761893]
[1717793883105,0.10482637,69339.0,69329.0,0.22761893]
[1717793883273,0.00733073,69338.0,69329.0,0.22761893]
[1717793883451,0.10482637,69339.0,69329.0,0.22761893]
[1717793883653,0.01138264,69338.0,69329.0,0.22761893]
[1717793883909,0.01871337,69338.0,69336.0,0.144223]
[1717793884093,0.01138264,69338.0,69336.0,0.144223]
[1717793884299,0.01209671,69337.0,69336.0,0.144223]
[1717793884470,0.00727034,69337.0,69336.0,0.144223]
[1717793884891,0.01882637,69339.0,69336.0,0.144223]
[1717793885091,0.00721696,69337.0,69336.0,0.144223]
[1717793885295,0.01882637,69339.0,69336.0,0.144223]
[1717793885296,0.00482637,69338.0,69336.0,0.144223]
[1717793885462,0.00721696,69337.0,69336.0,0.144223]
[1717793885883,0.01082637,69338.0,69336.0,0.144223]
[1717793886131,0.30663243,69337.0,69336.0,0.144223]
[1717793886301,0.34390468,69337.0,69336.0,0.144223]
[1717793887097,0.33907831,69337.0,69336.0,0.144223]
[1717793887656,0.30663243,69337.0,69336.0,0.144223]
[1717793887908,0.01121696,69337.0,69336.0,0.144223]
[1717793888866,0.01621696,69337.0,69336.0,0.144223]
[1717793890667,0.31562528,69337.0,69336.0,0.144223]
[1717793890885,0.32045165,69337.0,69336.0,0.144223]
[1717793891793,0.00482637,69333.0,69326.0,0.000946]
[1717793892013,0.29943947,69332.0,69326.0,0.000946]
[1717793892221,0.30650312,69332.0,69326.0,0.000946]
[1717793892427,0.30650312,69332.0,69325.0,0.023]
[1717793892428,0.29943947,69331.0,69325.0,0.018946]
[1717793892633,0.35193747,69331.0,69325.0,0.16336493]
[1717793892853,0.29943947,69330.0,69325.0,0.17853856]
[1717793893065,0.052498,69331.0,69330.0,0.144237]
[1717793893297,0.29943652,69331.0,69330.0,0.144237]
[1717793893729,0.30043652,69331.0,69330.0,0.144237]
[1717793894146,0.30741465,69331.0,69330.0,0.144237]
[1717793894563,0.30641465,69331.0,69330.0,0.144237]
[1717793894766,0.30641465,69331.0,69330.0,0.147237]
[1717793895218,0.30641465,69331.0,69330.0,0.144237]
[1717793895606,0.30741465,69331.0,69330.0,0.144237]
[1717793895812,0.30724104,69331.0,69330.0,0.147237]
[1717793896247,0.30724104,69331.0,69330.0,0.144237]
[1717793896619,0.45613134,69331.0,69326.0,0.144245]
[1717793896779,0.04306393,69329.0,69326.0,0.144245]
[1717793896989,0.04306393,69329.0,69327.0,0.144243]
[1717793897189,0.05006778,69328.0,69327.0,0.144243]
[1717793897394,0.05006778,69328.0,69323.0,0.144251]
[1717793897395,0.00700385,69328.0,69323.0,0.144251]
[1717793897599,0.1,69330.0,69323.0,0.144251]
[1717793897811,0.00698885,69327.0,69324.0,0.144249]
[1717793898016,0.04306393,69329.0,69327.0,0.144243]
[1717793898222,0.14306393,69330.0,69327.0,0.144243]
[1717793898465,0.003,69328.0,69327.0,0.144243]
[1717793899727,0.014,69328.0,69327.0,0.144243]
[1717793899924,0.011,69328.0,69327.0,0.144243]
[1717793901264,0.021,69328.0,69327.0,0.144243]
[1717793903133,0.021,69328.0,69327.0,0.380743]
[1717793903360,0.021,69328.0,69327.0,0.27467363]
[1717793904001,0.021,69328.0,69327.0,0.26227363]
[1717793904414,0.021,69328.0,69327.0,0.41651563]
[1717793906439,0.021,69328.0,69327.0,0.56093456]
[1717793908918,0.021,69328.0,69327.0,0.85942156]
[1717793909149,0.021,69328.0,69327.0,0.84942156]
[1717793909349,0.021,69328.0,69327.0,0.85942156]
[1717793909730,0.021,69328.0,69327.0,1.00911376]
[1717793909986,0.011,69328.0,69327.0,1.00911376]
[1717793910185,0.01773217,69340.0,69339.0,0.15939163]
[1717793910395,0.1,69341.0,69340.0,0.15938963]
[1717793910862,0.1,69341.0,69339.0,0.229]
[1717793910863,0.0124,69340.0,69337.0,0.144221]
[1717793911078,0.0124,69339.0,69337.0,0.144221]
[1717793911281,0.03557205,69338.0,69337.0,0.144221]
[1717793911804,0.13557205,69338.0,69337.0,0.144221]
[1717793911942,0.17872309,69338.0,69337.0,0.144221]
[1717793912365,0.1787278,69338.0,69337.0,0.144221]
[1717793912743,0.0787278,69338.0,69337.0,0.144221]
[1717793913094,0.0927278,69338.0,69337.0,0.145221]
[1717793913301,0.14957205,69338.0,69337.0,0.145221]
[1717793913530,0.14957205,69338.0,69337.0,0.144221]
[1717793913738,0.16357205,69338.0,69337.0,0.145221]
[1717793913940,0.20673349,69338.0,69337.0,0.145221]
[1717793914073,0.19273349,69338.0,69337.0,0.144221]
[1717793914480,0.16357205,69338.0,69337.0,0.145221]
[1717793914884,0.14957205,69338.0,69337.0,0.144221]
[1717793915227,0.22828917,69338.0,69337.0,0.145221]
[1717793915776,0.52768943,69338.0,69337.0,0.145221]
[1717793915986,0.54168943,69338.0,69337.0,0.145221]
[1717793916188,0.52768943,69338.0,69337.0,0.145221]
[1717793916393,0.46297231,69338.0,69337.0,0.145221]
[1717793916596,0.46297231,69338.0,69337.0,0.144221]
[1717793916801,0.51374429,69338.0,69337.0,0.144221]
[1717793917215,0.52774732,69338.0,69337.0,0.144221]
[1717793917401,0.44897231,69338.0,69337.0,0.144221]
[1717793917608,0.5141137,69338.0,69337.0,0.144221]
[1717793917864,0.44140026,69338.0,69337.0,0.144221]
[1717793918420,0.42740026,69338.0,69337.0,0.144221]
[1717793918699,0.44140026,69338.0,69337.0,0.144221]
[1717793919009,0.44139065,69338.0,69337.0,0.144221]
[1717793919213,0.41339065,69338.0,69337.0,0.144221]
[1717793919623,0.49216723,69338.0,69337.0,0.144221]
[1717793920239,0.44925141,69338.0,69337.0,0.144221]
[1717793920491,0.46325141,69338.0,69337.0,0.144221]
[1717793920637,0.42739065,69338.0,69337.0,0.144221]
[1717793920833,0.49219076,69338.0,69337.0,0.144221]
[1717793921209,0.41339065,69338.0,69337.0,0.144221]
[1717793921363,0.42739065,69338.0,69337.0,0.307021]
[1717793921896,0.00482637,69330.0,69327.0,0.205188]
[1717793922114,0.00482637,69328.0,69327.0,0.060946]
[1717793922234,0.14871693,69328.0,69327.0,0.060946]
[1717793922411,0.52426534,69328.0,69327.0,0.060946]
[1717793922612,0.65384945,69328.0,69327.0,0.060946]
[1717793922932,0.52434817,69328.0,69327.0,0.060946]
[1717793924131,0.53434817,69328.0,69327.0,0.060946]
[1717793924566,0.52992424,69328.0,69327.0,0.060946]
[1717793924738,0.45694193,69328.0,69327.0,0.060946]
[1717793924943,0.46211556,69328.0,69327.0,0.060946]
[1717793925147,0.46694193,69328.0,69327.0,0.060946]
[1717793926852,0.54000266,69328.0,69327.0,0.060946]
[1717793927090,0.24052918,69328.0,69327.0,0.060946]
[1717793927275,0.46694497,69328.0,69327.0,0.060946]
[1717793928403,1.61493314,69328.0,69327.0,0.060946]
[1717793928629,0.01722637,69313.0,69307.0,0.144284]
[1717793928855,0.31187652,69313.0,69307.0,0.144284]
[1717793929064,0.45502548,69313.0,69307.0,0.144284]
[1717793929490,0.44262716,69313.0,69307.0,0.144284]
[1717793929698,0.44745353,69313.0,69307.0,0.144284]
[1717793929915,0.44262716,69313.0,69307.0,0.144284]
[1717793930325,0.45662716,69313.0,69307.0,0.144284]
[1717793930762,0.47062716,69313.0,69303.0,0.144293]
[1717793931025,0.58342428,69313.0,69304.0,0.14429]
[1717793931172,0.56942428,69313.0,69304.0,0.14429]
[1717793931379,0.46145353,69313.0,69304.0,0.14429]
[1717793931794,0.44745353,69313.0,69304.0,0.14429]
[1717793932175,0.46156301,69313.0,69304.0,0.14429]
[1717793932374,0.5116889,69313.0,69304.0,0.14429]
[1717793932582,0.5256889,69313.0,69304.0,0.14429]
[1717793932779,0.5396889,69313.0,69304.0,0.14429]
[1717793933222,0.5256889,69313.0,69304.0,0.14429]
[1717793933428,0.52086253,69313.0,69304.0,0.14429]
[1717793933667,0.4533424,69313.0,69304.0,0.14429]
[1717793933863,0.44851603,69313.0,69304.0,0.14429]
[1717793934066,0.4533424,69313.0,69304.0,0.14429]
[1717793934419,0.5180581,69313.0,69304.0,0.14429]
[1717793934798,0.51323173,69313.0,69305.0,0.144289]
[1717793935872,0.5180581,69313.0,69306.0,0.1626]
[1717793936244,0.4533424,69313.0,69306.0,0.1626]
[1717793936405,0.44851603,69313.0,69306.0,0.306887]
[1717793936914,0.49164597,69313.0,69306.0,0.306887]
[1717793938564,0.44851603,69313.0,69306.0,0.306887]
[1717793939725,0.44851603,69313.0,69306.0,0.144287]
[1717793940881,0.46573335,69313.0,69306.0,0.144287]
[1717793941314,0.47055972,69313.0,69306.0,0.144287]
[1717793943623,0.47055972,69313.0,69312.0,0.01639206]
[1717793944052,0.54055972,69313.0,69312.0,0.01733806]
[1717793944912,0.52655972,69313.0,69312.0,0.01733806]
[1717793945326,1.38782316,69313.0,69312.0,0.01733806]
[1717793945533,1.38782316,69313.0,69290.0,0.2342]
[1717793945534,0.00482637,69293.0,69290.0,0.2342]
[1717793945914,0.00482637,69292.0,69290.0,0.2342]
[1717793946148,0.00482637,69291.0,69290.0,0.2342]
[1717793946396,0.07482637,69291.0,69290.0,0.2342]
[1717793946600,0.00482637,69284.0,69283.0,0.1589]
[1717793946807,0.00482637,69283.0,69282.0,0.0753]
[1717793947011,0.31848121,69283.0,69280.0,0.1548]
[1717793947424,0.1,69282.0,69280.0,0.1548]
[1717793947643,0.00482637,69282.0,69280.0,0.1548]
[1717793947834,0.00653368,69282.0,69280.0,0.1548]
[1717793948037,0.01136859,69281.0,69280.0,0.1548]
[1717793948805,0.01119498,69281.0,69280.0,0.1548]
[1717793949455,0.00482637,69281.0,69280.0,0.1548]
[1717793949630,0.01882637,69281.0,69280.0,0.1548]
[1717793950208,0.02534777,69281.0,69280.0,0.1548]
[1717793951231,0.03934777,69281.0,69280.0,0.1548]
[1717793953952,0.0002535,69281.0,69280.0,0.1548]
[1717793955360,0.29990436,69281.0,69280.0,0.1548]
[1717793955591,0.39990436,69281.0,69280.0,0.1548]
[1717793957562,0.01727478,69291.0,69280.0,0.14441893]
[1717793957731,0.01727478,69291.0,69273.0,0.07222824]
[1717793957732,0.4760925,69297.0,69296.0,0.144308]
[1717793957943,0.4760925,69297.0,69296.0,0.73292693]
[1717793959005,0.4760925,69297.0,69296.0,0.55772693]
[1717793959431,0.4790925,69297.0,69296.0,0.55772693]
[1717793959867,0.4920925,69297.0,69296.0,0.55872693]
[1717793960473,0.4790925,69297.0,69296.0,0.55772693]
[1717793960891,0.008,69297.0,69296.0,0.55772693]
[1717793963735,0.008,69297.0,69296.0,0.144308]
[1717793963931,0.008,69297.0,69289.0,0.144321]
[1717793964311,0.008,69297.0,69295.0,0.14431]
[1717793964752,0.003,69297.0,69295.0,0.14431]
[1717793964951,0.012,69297.0,69296.0,0.001]
[1717793965102,0.024,69297.0,69296.0,0.165308]
[1717793965649,0.012,69297.0,69296.0,0.56842693]
[1717793965840,0.024,69297.0,69296.0,0.56842693]
[1717793966012,0.012,69297.0,69296.0,0.56842693]
[1717793966224,0.01729405,69309.0,69303.0,0.02]
[1717793966405,0.1,69311.0,69303.0,0.02]
[1717793966602,0.1,69311.0,69302.0,0.164295]
[1717793967157,0.1,69311.0,69302.0,0.144295]
[1717793967374,0.014,69309.0,69302.0,0.144295]
[1717793967999,0.1,69311.0,69302.0,0.144295]
[1717793968208,0.114,69311.0,69302.0,0.144295]
[1717793968435,0.03580835,69310.0,69302.0,0.144295]
[1717793969739,0.014,69309.0,69302.0,0.145295]
[1717793970360,0.014,69310.0,69302.0,0.144295]
[1717793970532,0.03572486,69309.0,69302.0,0.145295]
[1717793970732,0.028,69310.0,69303.0,0.02]
[1717793970986,0.028,69310.0,69304.0,0.043]
[1717793971131,0.04299352,69315.0,69306.0,0.164285]
[1717793971132,0.1,69315.0,69306.0,0.164285]
[1717793971346,0.1,69315.0,69307.0,0.301585]
[1717793971549,0.014,69309.0,69307.0,0.321585]
[1717793971742,0.028,69309.0,69307.0,0.321585]
[1717793972031,0.014,69309.0,69307.0,0.321585]
[1717793972241,0.014,69309.0,69307.0,0.301585]
[1717793972579,0.1312841,69315.0,69307.0,0.301585]
[1717793972791,0.1172841,69315.0,69307.0,0.301585]
[1717793972992,0.1172841,69315.0,69307.0,0.302585]
[1717793972993,0.014,69309.0,69307.0,0.302585]
[1717793973822,0.014,69309.0,69307.0,0.303585]
[1717793974424,0.014,69309.0,69307.0,0.302585]
[1717793974627,0.028,69309.0,69307.0,0.303585]
[1717793975032,0.014,69309.0,69307.0,0.302585]
[1717793975282,0.028,69309.0,69307.0,0.303585]
[1717793975613,0.028,69309.0,69307.0,0.302585]
[1717793975989,0.042,69309.0,69307.0,0.303585]
[1717793978574,0.04286,69309.0,69307.0,0.303585]
[1717793978808,0.04286,69309.0,69308.0,0.224383]
[1717793979553,0.04286,69309.0,69308.0,0.244383]
[1717793979758,0.04286,69309.0,69308.0,0.224383]
[1717793980185,0.02886,69309.0,69308.0,0.244383]
[1717793980479,0.04286,69309.0,69308.0,0.245383]
[1717793980930,0.01486,69309.0,69308.0,0.268383]
[1717793981131,0.02886,69309.0,69308.0,0.269383]
[1717793983798,0.02886,69309.0,69308.0,0.86516793]
[1717793984214,0.02886,69309.0,69308.0,1.16373393]
[1717793984535,0.02886,69309.0,69308.0,1.15373393]
[1717793984772,0.01486,69309.0,69308.0,1.15273393]
[1717793984946,0.00086,69309.0,69308.0,1.15173393]
[1717793985151,0.02886,69309.0,69308.0,1.15373393]
[1717793985576,0.01486,69309.0,69308.0,1.15173393]
[1717793985738,0.01486,69309.0,69308.0,1.15473393]
[1717793986343,0.01486,69309.0,69308.0,1.16473393]
[1717793986946,0.01486,69309.0,69308.0,1.16573393]
[1717793991228,0.00086,69327.0,69326.0,0.696038]
[1717793991432,0.00086,69327.0,69326.0,0.86345693]
[1717793992559,0.02886,69327.0,69326.0,0.86545693]
[1717793992763,0.01486,69327.0,69326.0,0.86445693]
[1717793992974,0.01486,69327.0,69326.0,0.86545693]
[1717793993168,0.02786,69327.0,69326.0,0.86545693]
[1717793993821,0.01386,69327.0,69326.0,0.86445693]
[1717793994014,0.01386,69327.0,69326.0,0.86545693]
[1717793994239,0.02786,69327.0,69326.0,0.86545693]
[1717793995492,0.02786,69327.0,69326.0,1.16394893]
[1717793995741,0.06463562,69350.0,69343.0,0.2442]
[1717793995939,0.0086,69355.0,69326.0,0.16941893]
[1717793995940,0.0086,69352.0,69348.0,0.2642]
[1717793996091,0.0086,69352.0,69348.0,0.43161893]
[1717793996294,0.0086,69352.0,69348.0,0.57581893]
[1717793997322,0.0086,69352.0,69348.0,0.1672]
[1717793997531,0.0086,69352.0,69348.0,0.33161893]
[1717793997739,0.0086,69352.0,69348.0,0.87143893]
[1717793998133,0.0086,69352.0,69348.0,0.85271893]
[1717793998436,0.0086,69352.0,69348.0,0.62001893]
[1717793998639,0.01486,69349.0,69348.0,0.62101893]
[1717793999261,0.01486,69349.0,69348.0,0.62201893]
[1717793999469,0.01486,69349.0,69348.0,0.62101893]
[1717793999889,0.00086,69349.0,69348.0,0.62101893]
[1717794000131,0.00086,69349.0,69348.0,0.60101893]
[1717794000342,0.00186,69349.0,69348.0,0.31361893]
[1717794000744,0.00086,69349.0,69348.0,0.1682]
[1717794001382,0.00086,69349.0,69348.0,0.1452]
[1717794001582,0.50176493,69349.0,69348.0,0.001]
[1717794001887,0.50176493,69349.0,69317.0,0.1512]
[1717794001888,0.1179,69338.0,69319.0,0.02]
[1717794002095,0.14441893,69337.0,69330.0,0.43500642]
[1717794002310,0.1179,69328.0,69317.0,0.02]
[1717794002514,0.1179,69328.0,69326.0,0.43500642]
[1717794002697,0.0402,69334.0,69325.0,0.02]
[1717794002827,0.0402,69334.0,69318.0,0.14441893]
[1717794002828,0.1402,69334.0,69323.0,0.02]
[1717794003040,0.1402,69334.0,69325.0,0.02]
[1717794003234,0.1402,69334.0,69320.0,0.02]
[1717794003436,0.02179,69333.0,69322.0,0.144254]
[1717794003932,0.02179,69333.0,69317.0,0.001]
[1717794003933,0.1402,69334.0,69329.0,0.144239]
[1717794004892,0.1402,69334.0,69325.0,0.001]
[1717794004893,0.1512,69334.0,69325.0,0.001]
[1717794005927,0.1512,69334.0,69329.0,0.001]
[1717794006327,0.1402,69334.0,69323.0,0.14425]
[1717794006529,0.1402,69334.0,69324.0,0.023]
[1717794006776,0.02179,69333.0,69329.0,0.001]
[1717794007130,0.02179,69333.0,69325.0,0.001]
[1717794007930,0.02179,69333.0,69324.0,0.023]
[1717794008364,0.02179,69333.0,69329.0,0.001]
[1717794008605,0.29945447,69332.0,69324.0,0.023]
[1717794008883,0.01505557,69331.0,69324.0,0.023]
[1717794009110,0.01505557,69331.0,69325.0,0.001]
[1717794009320,0.01505557,69331.0,69324.0,0.023]
[1717794009532,0.01505557,69331.0,69329.0,0.001]
[1717794009752,0.03279,69333.0,69329.0,0.001]
[1717794009966,0.64387344,69332.0,69318.0,0.144262]
[1717794010206,0.1602,69330.0,69319.0,0.023]
[1717794010446,0.1602,69330.0,69325.0,0.001]
[1717794010447,0.33859608,69329.0,69325.0,0.001]
[1717794010664,0.03914157,69329.0,69325.0,0.001]
[1717794010889,0.03914157,69329.0,69319.0,0.023]
[1717794011086,0.1835605,69329.0,69319.0,0.023]
[1717794011301,0.1574,69323.0,69318.0,0.001]
[1717794011503,0.29949296,69322.0,69318.0,0.001]
[1717794012427,0.29949296,69322.0,69319.0,0.02]
[1717794012682,0.29949296,69322.0,69320.0,0.023]
[1717794012892,0.0806,69324.0,69318.0,0.024]
[1717794013102,0.2574,69328.0,69318.0,0.023]
[1717794013316,0.2574,69328.0,69319.0,0.001]
[1717794013926,0.2574,69328.0,69318.0,0.023]
[1717794014382,0.011,69324.0,69318.0,0.145262]
[1717794014600,0.011,69324.0,69319.0,0.023]
[1717794014748,0.011,69324.0,69322.0,0.02]
[1717794014953,0.011,69324.0,69323.0,0.023]
[1717794015358,0.011,69324.0,69322.0,0.023]
[1717794015562,0.011,69324.0,69320.0,0.023]
[1717794015829,0.2574,69328.0,69320.0,0.023]
[1717794015945,0.02684,69324.0,69320.0,0.023]
[1717794016150,0.2684,69328.0,69320.0,0.023]
[1717794016597,0.2684,69328.0,69320.0,0.043]
[1717794016810,0.2574,69328.0,69320.0,0.043]
[1717794017052,0.2574,69328.0,69323.0,0.02]
[1717794017053,0.011,69324.0,69323.0,0.02]
[1717794017256,0.011,69324.0,69323.0,0.043]
[1717794017466,0.011,69324.0,69323.0,0.187252]
[1717794017674,0.00086,69333.0,69329.0,0.02]
[1717794017880,0.00086,69333.0,69331.0,0.02]
[1717794018300,0.00086,69333.0,69332.0,0.023]
[1717794018499,0.00086,69333.0,69332.0,0.043]
[1717794018709,0.00086,69333.0,69332.0,0.187233]
[1717794018975,0.00086,69333.0,69332.0,0.33165193]
[1717794019539,0.00086,69333.0,69332.0,0.33265193]
[1717794020157,0.00086,69333.0,69332.0,0.31365193]
[1717794020384,0.01286,69333.0,69332.0,0.33465193]
[1717794020961,0.00086,69333.0,69332.0,0.146233]
[1717794021161,0.024746,69333.0,69332.0,0.002]